bitfinex-derivatives/quotes_ETHF0:USTF0_20250626
["timestamp","ask_amount","ask_price","bid_price","bid_amount"]
[1750912880458,0.6977,2479.0,2478.9,0.80637]
[1750912880654,3.2078,2479.3,2478.9,2.57453758]
[1750912880858,3.2078,2479.3,2479.0,1.4187]
[1750912881059,0.80628,2479.2,2479.0,2.22501]
[1750912881556,3.2078,2479.3,2479.1,0.8063]
[1750912881557,4.01406,2479.3,2479.1,0.8063]
[1750912881761,0.80627,2479.2,2479.0,2.22501]
[1750912882348,0.80625,2479.3,2479.1,0.80629]
[1750912882548,0.80632,2479.1,2478.8,0.8064]
[1750912882760,6.58863758,2479.2,2478.6,3.9054]
[1750912882956,6.58863758,2479.2,2478.4,2.2942966]
[1750912882957,2.57453758,2478.8,2478.4,1.6081966]
[1750912883163,2.57453758,2478.8,2478.3,3.2078]
[1750912883164,1.3887,2478.7,2478.3,3.2078]
[1750912883358,0.80653,2478.4,2478.3,3.2078]
[1750912884863,0.80664,2478.1,2478.0,3.2078]
[1750912885457,0.80661,2478.2,2478.0,3.2078]
[1750912885657,0.80661,2478.2,2478.0,4.5525]
[1750912885857,0.80658,2478.3,2478.0,5.35915]
[1750912886258,7.10533758,2478.6,2478.0,6.1606966]
[1750912886453,3.2078,2478.9,2478.2,2.57453758]
[1750912886653,6.595,2478.9,2478.3,4.5525]
[1750912886863,0.80649,2478.6,2478.4,0.7163]
[1750912887170,0.80649,2478.6,2478.5,1.3447]
[1750912887353,3.2078,2478.6,2478.2,1.6081966]
[1750912887557,3.2078,2478.6,2478.1,3.6546966]
[1750912887762,3.9279,2478.6,2478.2,1.3302]
[1750912888064,0.80651,2478.5,2478.3,2.57453758]
[1750912888265,4.73438,2478.6,2478.4,1.3302]
[1750912888459,0.7201,2478.6,2478.4,1.3302]
[1750912888669,1.52657,2478.6,2478.4,1.3302]
[1750912889169,0.7201,2478.6,2478.4,1.3302]
[1750912889364,0.7201,2478.6,2478.4,2.13673]
[1750912889566,0.7201,2478.6,2478.3,1.6081966]
[1750912889866,3.9279,2478.6,2478.3,1.6081966]
[1750912890067,4.73437,2478.6,2478.4,1.3302]
[1750912890275,0.8065,2478.5,2478.4,1.3302]
[1750912891270,4.73438,2478.6,2478.4,1.3302]
[1750912891974,11.4713,2479.0,2478.5,1.6081966]
[1750912892161,0.6876,2478.9,2478.6,1.3057]
[1750912892466,0.999,2479.0,2478.6,1.3057]
[1750912892767,1.49388,2479.2,2478.9,2.4145666]
[1750912892961,1.49388,2479.2,2479.0,0.80633]
[1750912892962,0.6876,2479.2,2479.0,0.80633]
[1750912893166,0.999,2479.3,2479.1,2.40867707]
[1750912893366,0.999,2479.3,2479.1,1.60791716]
[1750912893762,0.80627,2479.2,2479.1,1.60791716]
[1750912893961,0.80627,2479.2,2479.0,4.81571716]
[1750912893962,0.80628,2479.2,2479.0,4.81571716]
[1750912894271,0.8063,2479.1,2479.0,4.81571716]
[1750912895167,0.80629,2479.2,2479.0,4.81571716]
[1750912895467,0.8063,2479.1,2479.0,3.2078]
[1750912895665,2.8371,2479.1,2479.0,3.2078]
[1750912895868,0.80643,2478.7,2478.6,1.60791716]
[1750912896069,0.80643,2478.7,2478.5,2.40867707]
[1750912896070,0.80646,2478.6,2478.5,1.60791716]
[1750912897064,0.8065,2478.5,2478.4,1.60791716]
[1750912897567,0.80653,2478.4,2478.3,1.60791716]
[1750912898677,1.9863,2478.7,2478.3,1.60791716]
[1750912899370,0.80653,2478.4,2478.3,1.60791716]
[1750912901172,1.9863,2478.7,2478.3,1.60791716]
[1750912901372,0.80648,2478.6,2478.4,1.60791716]
[1750912901578,0.80648,2478.6,2478.4,2.96351716]
[1750912902274,1.46025,2478.7,2478.4,3.77004716]
[1750912902676,0.6538,2478.7,2478.4,2.96351716]
[1750912902975,0.6538,2478.7,2478.5,1.60791716]
[1750912903187,0.80638,2478.9,2478.6,2.14176]
[1750912903485,0.80638,2478.9,2478.6,2.94321716]
[1750912903675,2.17565,2479.0,2478.7,2.41432716]
[1750912903981,2.17565,2479.0,2478.8,0.8064]
[1750912904179,1.3693,2479.0,2478.7,3.74963716]
[1750912904479,1.3693,2479.0,2478.7,2.94321716]
[1750912904676,1.46273,2479.0,2478.8,3.74959716]
[1750912904979,3.2078,2479.1,2479.0,0.80633]
[1750912905180,4.0141,2479.1,2479.0,0.80633]
[1750912905375,3.2078,2479.1,2478.9,0.80635]
[1750912905676,3.2078,2479.1,2478.9,2.14165]
[1750912905881,0.80626,2479.3,2479.0,0.80633]
[1750912906078,0.80626,2479.3,2479.0,2.17313]
[1750912906379,0.80627,2479.2,2479.0,2.17313]
[1750912906780,0.80625,2479.3,2479.1,0.8063]
[1750912907182,1.46262,2479.4,2479.0,1.3668]
[1750912907479,0.6564,2479.4,2479.0,2.0223]
[1750912907684,0.6564,2479.4,2479.3,0.80624]
[1750912908979,1.46262,2479.4,2479.1,2.41419716]
[1750912909174,0.6564,2479.4,2479.2,0.80627]
[1750912909781,1.4626,2479.4,2479.2,0.80627]
[1750912910577,1.46261,2479.4,2479.2,0.80627]
[1750912910977,0.6564,2479.4,2479.2,0.80627]
[1750912911473,3.2078,2479.5,2479.1,1.60791716]
[1750912911676,3.2078,2479.5,2479.2,3.01321716]
[1750912911871,3.2078,2479.5,2479.2,1.60791716]
[1750912912075,4.01398,2479.5,2479.3,0.80623]
[1750912912481,4.01398,2479.5,2479.2,0.80626]
[1750912912683,0.80621,2479.4,2479.2,0.80626]
[1750912912884,4.01399,2479.5,2479.2,0.80626]
[1750912913084,0.80621,2479.4,2479.2,0.80626]
[1750912913384,0.80621,2479.4,2479.1,1.60791716]
[1750912913883,0.80621,2479.4,2479.2,0.80626]
[1750912914091,4.01399,2479.5,2479.2,0.80626]
[1750912914885,0.8062,2479.4,2479.2,0.80626]
[1750912915184,0.80624,2479.3,2479.1,2.41420716]
[1750912916076,0.80627,2479.2,2479.1,1.60791716]
[1750912916890,0.8063,2479.1,2479.0,1.60791716]
[1750912917189,1.4791,2479.1,2479.0,1.60791716]
[1750912917689,1.4791,2479.1,2478.9,13.01383707]
[1750912918093,0.80633,2479.0,2478.9,12.20747707]
[1750912918390,0.80633,2479.0,2478.9,3.2078]
[1750912918797,0.80637,2478.9,2478.7,3.75847707]
[1750912919284,0.8064,2478.8,2478.7,2.40867707]
[1750912919890,0.8064,2478.8,2478.7,3.21510707]
[1750912920084,0.80639,2478.9,2478.7,3.21510707]
[1750912920585,0.80639,2478.9,2478.8,0.8064]
[1750912920784,0.80636,2479.0,2478.8,3.21507707]
[1750912920983,0.80637,2478.9,2478.8,2.40867707]
[1750912924395,0.80637,2478.9,2478.8,1.60748688]
[1750912924596,1.80537,2478.9,2478.8,1.60748688]
[1750912925493,1.80537,2478.9,2478.7,1.60748688]
[1750912925494,3.57571841,2478.9,2478.7,1.60748688]
[1750912925700,1.80539,2478.9,2478.8,1.20561856]
[1750912927696,1.80539,2478.9,2478.6,2.40867707]
[1750912927697,6.78351841,2478.9,2478.6,1.20561856]
[1750912927896,0.80643,2478.7,2478.5,1.60748688]
[1750912928198,0.80646,2478.6,2478.5,1.60748688]
[1750912928496,1.51056,2478.6,2478.5,1.60748688]
[1750912928700,0.7041,2478.6,2478.5,2.41398688]
[1750912928895,0.7041,2478.6,2478.5,0.8065]
[1750912929394,1.51056,2478.6,2478.5,2.40867707]
[1750912931591,0.7041,2478.6,2478.5,2.40867707]
[1750912931897,1.51056,2478.6,2478.5,2.40867707]
[1750912933000,0.8065,2478.5,2478.4,2.40867707]
[1750912933493,0.8065,2478.5,2478.1,9.80256943]
[1750912933494,0.80656,2478.3,2478.2,1.20697565]
[1750912933700,1.80556,2478.3,2478.2,1.20697565]
[1750912935398,0.80659,2478.2,2478.1,1.20697565]
[1750912935700,0.80666,2478.0,2477.9,1.20697565]
[1750912935896,0.80666,2478.0,2477.9,1.2058678]
[1750912936294,0.80669,2477.9,2477.8,1.2058678]
[1750912937803,1.51015,2478.1,2477.8,2.0125678]
[1750912937997,1.51015,2478.1,2477.9,1.4134]
[1750912938199,0.80666,2478.0,2477.9,1.4134]
[1750912938997,0.80666,2478.0,2477.8,1.2058678]
[1750912939297,0.999,2477.9,2477.8,1.2058678]
[1750912939501,0.80672,2477.8,2477.7,4.4136678]
[1750912939705,2.52982,2477.8,2477.7,4.4136678]
[1750912940605,2.52982,2477.8,2477.7,3.2078]
[1750912940906,0.80676,2477.7,2477.6,1.2058678]
[1750912941603,2.52984,2477.8,2477.6,2.0126578]
[1750912942508,2.52984,2477.8,2477.6,2.0126278]
[1750912942707,2.52984,2477.8,2477.4,2.0127078]
[1750912942708,0.80681,2477.6,2477.4,2.0127078]
[1750912942904,0.80681,2477.6,2477.4,2.5214678]
[1750912943106,1.7231,2477.8,2477.4,2.5214678]
[1750912943107,0.80682,2477.5,2477.4,2.5214678]
[1750912943308,0.80682,2477.5,2477.4,1.3156]
[1750912943501,0.80685,2477.4,2477.3,4.4136678]
[1750912943805,0.80685,2477.4,2477.3,3.2078]
[1750912944002,1.46355,2477.4,2477.3,3.2078]
[1750912944408,2.13745,2477.4,2477.3,3.2078]
[1750912946506,0.999,2477.5,2477.3,3.2078]
[1750912946813,0.999,2477.5,2477.3,6.99038621]
[1750912947112,0.999,2477.5,2477.4,2.16125]
[1750912947301,0.999,2477.5,2477.4,2.83335]
[1750912948302,0.80645,2478.7,2477.4,13.6125]
[1750912948502,1.3744,2478.7,2478.4,0.80652]
[1750912948702,1.3744,2478.7,2478.3,2.57671841]
[1750912949005,0.6541,2478.7,2478.6,0.80646]
[1750912949205,3.2078,2478.8,2478.7,0.80643]
[1750912949505,0.80639,2478.9,2478.6,0.80645]
[1750912949506,0.80638,2478.9,2478.6,0.80645]
[1750912949701,1.3701,2479.0,2478.3,1.20178724]
[1750912949702,5.78451841,2478.7,2478.3,1.20178724]
[1750912949902,0.80651,2478.5,2478.2,5.21615724]
[1750912950406,0.80651,2478.5,2478.3,1.20178724]
[1750912951309,0.80651,2478.5,2478.2,2.00835724]
[1750912951607,0.671,2478.6,2478.2,1.20178724]
[1750912951608,0.80653,2478.4,2478.2,1.20178724]
[1750912951803,9.26575218,2478.3,2478.2,1.20178724]
[1750912952010,0.80668,2478.0,2477.7,1.20178724]
[1750912952200,0.8067,2477.9,2477.8,1.20178724]
[1750912952402,0.8067,2477.9,2477.6,4.40958724]
[1750912952602,0.6924,2477.8,2477.6,4.40958724]
[1750912952810,0.6924,2477.8,2477.7,0.80676]
[1750912953014,0.6924,2477.8,2477.6,5.21635724]
[1750912953205,0.6924,2477.8,2477.7,1.20178724]
[1750912953513,0.80676,2477.7,2477.6,3.2078]
[1750912954406,0.6924,2477.8,2477.6,3.2078]
[1750912954603,1.49914,2477.8,2477.6,4.40958724]
[1750912955512,0.80676,2477.7,2477.6,4.40958724]
[1750912956011,1.49914,2477.8,2477.6,4.40958724]
[1750912956711,0.80676,2477.7,2477.6,4.40958724]
[1750912956908,0.80676,2477.7,2477.6,3.2078]
[1750912957210,0.80676,2477.7,2477.6,4.40958724]
[1750912957405,0.80676,2477.7,2477.6,1.20178724]
[1750912957602,0.80676,2477.7,2477.4,2.21673]
[1750912957603,21.74989218,2477.7,2476.8,3.21156943]
[1750912957804,21.74989218,2477.7,2476.0,3.2078]
[1750912957805,3.2078,2476.9,2476.0,3.2078]
[1750912958002,0.80712,2476.6,2476.2,0.80723]
[1750912958508,2.8489,2476.8,2476.1,2.93236]
[1750912958710,0.80718,2476.4,2476.1,2.93236]
[1750912959009,0.80723,2476.3,2476.1,1.4167]
[1750912959512,0.8072,2476.4,2476.1,1.4167]
[1750912959705,0.80722,2476.3,2476.1,1.4167]
[1750912959906,0.80725,2476.2,2476.1,1.4167]
[1750912961004,3.2078,2476.6,2476.1,1.4167]
[1750912961209,0.80718,2476.4,2476.1,2.22396]
[1750912961408,0.80717,2476.5,2476.2,2.86413]
[1750912961612,0.80717,2476.5,2476.3,1.3937]
[1750912962010,0.80718,2476.4,2476.3,1.3937]
[1750912962516,0.80717,2476.5,2476.3,1.3937]
[1750912963217,7.9986,2476.8,2476.3,1.3937]
[1750912963517,0.80715,2476.5,2476.3,1.3937]
[1750912963716,4.01484,2476.9,2476.6,0.80711]
[1750912964019,3.2078,2476.9,2476.7,1.4468]
[1750912964208,0.80705,2476.8,2476.7,1.4468]
[1750912964413,3.2078,2476.9,2476.7,1.4468]
[1750912964414,4.01484,2476.9,2476.7,1.4468]
[1750912964617,0.80705,2476.8,2476.7,1.4468]
[1750912964819,0.80713,2476.6,2476.4,3.9234]
[1750912965007,0.80713,2476.6,2476.4,5.3702]
[1750912966013,0.80713,2476.6,2476.4,4.6546]
[1750912966214,0.80713,2476.6,2476.4,3.2078]
[1750912967716,0.8071,2476.7,2476.4,4.01497]
[1750912967917,0.80712,2476.6,2476.4,3.2078]
[1750912968221,1.50502,2476.6,2476.4,3.2078]
[1750912968521,0.80715,2476.5,2476.4,3.2078]
[1750912968817,0.80716,2476.5,2476.3,7.39519]
[1750912969010,0.80716,2476.5,2476.3,6.588]
[1750912969208,0.80718,2476.4,2476.3,6.588]
[1750912969920,0.6708,2476.5,2476.3,6.588]
[1750912969921,1.47796,2476.5,2476.3,6.588]
[1750912970311,1.47796,2476.5,2476.3,7.39521]
[1750912970820,1.47796,2476.5,2476.3,6.588]
[1750912971020,1.47797,2476.5,2476.2,1.47043]
[1750912971327,0.80718,2476.4,2476.2,1.47043]
[1750912971518,1.47796,2476.5,2476.3,0.80721]
[1750912971721,0.80718,2476.4,2476.2,1.47043]
[1750912972126,1.47796,2476.5,2476.3,0.80721]
[1750912972329,0.80718,2476.4,2476.2,1.47043]
[1750912972622,0.6708,2476.5,2476.2,0.6632]
[1750912972820,0.8072,2476.4,2476.2,1.47043]
[1750912973717,0.6708,2476.5,2476.2,0.6632]
[1750912973915,0.8072,2476.4,2476.2,1.47043]
[1750912974115,0.80721,2476.3,2476.2,1.47043]
[1750912974423,0.80721,2476.3,2476.2,0.6632]
[1750912975022,0.80721,2476.3,2476.2,1.47045]
[1750912975322,0.80721,2476.3,2476.2,0.6632]
[1750912975621,0.6708,2476.5,2476.0,12.04489]
[1750912975825,0.6708,2476.5,2476.0,11.2376]
[1750912976123,0.80722,2476.3,2476.1,0.80726]
[1750912976524,0.80722,2476.3,2476.2,0.80725]
[1750912976720,0.80722,2476.3,2476.1,0.80726]
[1750912977225,0.6708,2476.5,2476.0,3.2078]
[1750912977226,0.80728,2476.1,2476.0,3.2078]
[1750912977924,3.883,2476.2,2475.6,9.7908]
[1750912978120,0.6752,2476.2,2476.1,0.80728]
[1750912978426,0.80726,2476.2,2476.0,4.0151]
[1750912978625,0.80724,2476.3,2476.1,0.80728]
[1750912979428,1.4824,2476.4,2476.2,0.80725]
[1750912979624,0.6708,2476.5,2476.4,0.80718]
[1750912979832,0.6708,2476.5,2476.1,1.4395]
[1750912980128,0.6708,2476.5,2476.4,0.80718]
[1750912980328,0.6708,2476.5,2476.3,0.80719]
[1750912980524,0.6708,2476.5,2476.2,0.6585]
[1750912980730,0.6708,2476.5,2476.1,1.4395]
[1750912981027,0.80722,2476.3,2476.1,0.80727]
[1750912981630,0.6708,2476.5,2476.1,0.80727]
[1750912981631,0.6842,2476.2,2476.1,0.80727]
[1750912982331,0.6708,2476.5,2476.1,1.4348]
[1750912982624,0.6708,2476.5,2476.4,0.80718]
[1750912983629,1.47795,2476.5,2476.3,0.80719]
[1750912984431,0.6708,2476.5,2476.3,0.80719]
[1750912984732,0.6708,2476.5,2476.4,0.80718]
[1750912984926,1.47797,2476.5,2476.3,0.80719]
[1750912985426,1.47797,2476.5,2476.2,0.80722]
[1750912985627,1.47797,2476.5,2476.3,0.80721]
[1750912986534,0.80719,2476.4,2476.0,12.84949281]
[1750912986733,0.80721,2476.4,2476.0,12.84949281]
[1750912987033,0.80721,2476.4,2476.1,0.80728]
[1750912987236,0.80721,2476.4,2476.2,2.40059281]
[1750912987433,0.80721,2476.4,2476.2,3.20783281]
[1750912987736,0.8072,2476.4,2476.3,1.61268955]
[1750912988724,2.2125,2476.4,2476.3,1.61268955]
[1750912989327,0.80725,2476.2,2476.1,1.61268955]
[1750912989530,10.57128078,2476.4,2476.1,1.61268955]
[1750912989835,10.57128078,2476.4,2476.0,3.20788281]
[1750912989836,0.80723,2476.3,2476.2,1.61268955]
[1750912990431,0.80728,2476.1,2476.0,2.40059281]
[1750912990631,1.46906,2476.2,2476.0,3.20790281]
[1750912990827,1.46906,2476.2,2476.1,1.61256537]
[1750912993338,0.80728,2476.1,2476.0,1.61256537]
[1750912993636,0.80728,2476.1,2475.9,3.20792281]
[1750912993844,0.80728,2476.1,2476.0,1.61215644]
[1750912994041,2.24858,2476.1,2476.0,1.61215644]
[1750912994337,4.83156078,2476.1,2476.0,1.61215644]
[1750912995139,0.80731,2476.0,2475.9,1.61215644]
[1750912996134,0.80734,2475.9,2475.8,1.61215644]
[1750912996336,1.52134,2475.9,2475.8,1.61215644]
[1750912996840,0.80738,2475.8,2475.7,1.61215644]
[1750912997040,1.46038,2475.8,2475.7,1.61215644]
[1750912998935,0.80741,2475.7,2475.6,1.61215644]
[1750912999241,0.80741,2475.7,2475.5,1.61215644]
[1750912999439,0.80744,2475.6,2475.5,1.61215644]
[1750912999642,0.80743,2475.7,2475.5,1.61215644]
[1750912999840,0.80743,2475.7,2475.5,2.41962644]
[1750913000235,3.2078,2476.5,2475.6,6.58]
[1750913000539,1.3395,2476.6,2476.3,0.8072]
[1750913000744,1.3395,2476.6,2476.3,2.1871]
[1750913001444,2.14662,2476.6,2476.4,0.80718]
[1750913001645,7.9195,2476.6,2476.4,0.80718]
[1750913001833,7.9195,2476.6,2476.5,0.80715]
[1750913002144,7.9195,2476.6,2476.4,0.80717]
[1750913002745,7.9195,2476.6,2476.3,1.3799]
[1750913002746,7.9195,2476.6,2476.5,0.80715]
[1750913003343,1.3395,2476.6,2476.4,0.80716]
[1750913003758,1.3395,2476.6,2476.5,0.80715]
[1750913004447,1.3395,2476.6,2476.4,0.80717]
[1750913004648,1.3395,2476.6,2476.5,0.80715]
[1750913004840,1.3395,2476.6,2476.4,0.80716]
[1750913005436,1.3395,2476.6,2476.5,0.80715]
[1750913006846,0.6945,2476.9,2476.7,0.80705]
[1750913007343,0.6945,2476.9,2476.8,0.80705]
[1750913007946,0.6945,2476.9,2476.7,0.80707]
[1750913008442,3.2078,2477.0,2476.8,0.80703]
[1750913008650,3.2078,2477.0,2476.7,1.4004]
[1750913008858,3.2078,2477.0,2476.9,0.80702]
[1750913009543,4.01466,2477.4,2477.1,0.80693]
[1750913009748,3.2078,2477.4,2477.2,0.8069]
[1750913009949,4.01466,2477.4,2477.1,0.80693]
[1750913010343,4.01466,2477.4,2477.2,0.80692]
[1750913010548,4.01466,2477.4,2477.0,2.2966414]
[1750913010549,4.01466,2477.4,2477.1,0.80693]
[1750913010951,4.01466,2477.4,2477.2,0.80692]
[1750913011255,4.01466,2477.4,2477.1,1.3542]
[1750913011256,3.2078,2477.4,2477.1,2.16114]
[1750913011551,4.01467,2477.4,2477.1,2.16114]
[1750913011753,3.2078,2477.4,2477.2,0.80692]
[1750913012253,3.2078,2477.4,2477.3,0.80689]
[1750913012650,3.2078,2477.4,2477.2,0.8069]
[1750913012849,3.2078,2477.4,2477.1,1.3542]
[1750913012850,3.2078,2477.4,2477.3,0.80689]
[1750913013054,0.6542,2477.5,2477.3,0.80687]
[1750913013353,0.6542,2477.5,2477.1,1.3542]
[1750913013653,0.6542,2477.5,2477.4,0.80685]
[1750913014048,0.6783,2477.6,2477.5,0.80682]
[1750913014248,0.6783,2477.6,2477.4,0.80684]
[1750913014648,0.686,2477.7,2477.6,0.80679]
[1750913015056,0.686,2477.7,2477.5,0.8068]
[1750913015255,3.8938,2477.7,2477.4,0.6655]
[1750913015455,4.70057,2477.7,2477.4,1.47234]
[1750913015651,1.49277,2477.7,2477.4,1.47234]
[1750913016256,1.49277,2477.7,2477.5,0.80682]
[1750913016459,0.686,2477.7,2477.6,0.80679]
[1750913017149,0.686,2477.7,2477.5,2.2171]
[1750913017551,0.686,2477.7,2477.6,0.80679]
[1750913018861,7.38455,2478.4,2478.1,0.80661]
[1750913019060,0.6753,2478.3,2478.1,0.80661]
[1750913019358,0.6753,2478.3,2478.2,0.80659]
[1750913019965,0.6753,2478.3,2478.1,0.80661]
[1750913020961,0.6753,2478.3,2478.0,1.9786]
[1750913021164,0.6753,2478.3,2478.2,0.80659]
[1750913021664,0.6753,2478.3,2478.0,1.9786]
[1750913021863,0.6753,2478.3,2478.1,0.80663]
[1750913022359,0.6753,2478.3,2478.2,0.80659]
[1750913023257,0.681,2478.5,2478.4,0.80653]
[1750913023550,46.509,2479.1,2478.0,1.9786]
[1750913023551,0.6914,2478.7,2478.3,0.80656]
[1750913023757,0.6914,2478.7,2478.5,0.8065]
[1750913024163,1.49783,2478.7,2478.4,0.80651]
[1750913024351,0.6914,2478.7,2478.5,0.80649]
[1750913024556,0.6914,2478.7,2478.6,0.80646]
[1750913025162,0.7183,2478.8,2478.6,0.80646]
[1750913025361,0.7183,2478.8,2478.7,0.80643]
[1750913025562,0.6573,2478.9,2478.5,4.5401]
[1750913025973,0.6573,2478.9,2478.8,0.8064]
[1750913026265,8.0476,2479.1,2478.6,2.57731864]
[1750913026564,8.7049,2479.1,2478.8,0.80638]
[1750913026766,7.8986,2479.1,2478.9,0.80635]
[1750913027066,0.6573,2479.1,2479.0,0.80633]
[1750913028166,0.6573,2479.1,2478.8,4.73719]
[1750913028369,0.6573,2479.1,2478.9,0.80637]
[1750913029264,1.4636,2479.1,2478.8,4.01418]
[1750913029666,3.2078,2479.2,2478.8,4.01418]
[1750913029667,3.2078,2479.2,2479.1,0.8063]
[1750913029869,0.80605,2479.9,2479.6,0.80614]
[1750913030066,0.6667,2479.8,2479.4,3.2078]
[1750913030373,0.80617,2479.5,2479.4,3.2078]
[1750913030563,1.9913,2479.8,2479.4,3.2078]
[1750913030766,0.80612,2479.7,2479.4,4.014]
[1750913031165,0.6973,2479.6,2479.4,4.014]
[1750913031872,0.6973,2479.6,2479.5,0.80617]
[1750913032664,0.6667,2479.8,2479.5,0.80617]
[1750913032863,0.6667,2479.8,2479.6,0.80613]
[1750913033064,1.47277,2479.8,2479.5,2.11965]
[1750913033269,0.6667,2479.8,2479.5,1.3135]
[1750913033459,0.6667,2479.8,2479.4,3.2078]
[1750913033668,0.80611,2479.7,2479.4,4.01397]
[1750913033874,0.6667,2479.8,2479.4,3.2078]
[1750913034075,0.6667,2479.8,2479.6,0.80612]
[1750913034369,0.6667,2479.8,2479.7,0.80611]
[1750913035373,0.6667,2479.8,2479.6,0.80612]
[1750913035572,0.6667,2479.8,2479.5,2.6887]
[1750913035973,0.6667,2479.8,2479.5,1.3222]
[1750913036170,0.6667,2479.8,2479.4,3.2078]
[1750913036476,1.3434,2479.7,2479.4,3.2078]
[1750913036968,0.80617,2479.5,2479.1,10.58409]
[1750913037168,0.7158,2479.4,2479.1,10.58409]
[1750913037569,0.7158,2479.4,2479.2,0.80626]
[1750913038079,0.7158,2479.4,2479.1,10.58409]
[1750913038274,0.7158,2479.4,2479.2,0.80627]
[1750913038666,1.52202,2479.4,2479.1,10.5841]
[1750913038882,1.48094,2479.3,2479.1,9.7778]
[1750913039170,0.80627,2479.2,2479.1,6.57]
[1750913039469,0.80627,2479.2,2478.9,0.80635]
[1750913039470,1.3276,2479.2,2478.9,0.80634]
[1750913039671,0.80627,2479.2,2478.9,0.80634]
[1750913039876,0.80627,2479.2,2479.0,0.80633]
[1750913040168,1.48095,2479.3,2479.0,0.80633]
[1750913040370,1.48095,2479.3,2479.0,0.80632]
[1750913040675,0.8063,2479.1,2478.9,0.80635]
[1750913040870,0.6747,2479.3,2478.8,4.01419]
[1750913040871,0.80634,2479.0,2478.8,4.01419]
[1750913041172,1.52103,2479.0,2478.8,4.01419]
[1750913042271,1.52103,2479.0,2478.8,3.2078]
[1750913042272,0.80637,2478.9,2478.8,3.2078]
[1750913042671,0.80637,2478.9,2478.7,7.37541]
[1750913042977,1.52105,2479.0,2478.8,0.8064]
[1750913043779,0.7147,2479.0,2478.9,0.80637]
[1750913044281,0.6747,2479.3,2479.2,0.80627]
[1750913045677,0.6747,2479.3,2479.1,3.2078]
[1750913045876,0.8063,2479.1,2478.9,0.80635]
[1750913046072,0.6861,2479.2,2479.0,0.80633]
[1750913046073,1.49238,2479.2,2479.0,0.80633]
[1750913046383,1.49238,2479.2,2479.1,0.8063]
[1750913046384,0.6861,2479.2,2479.1,0.8063]
[1750913046576,0.6747,2479.3,2479.2,0.80627]
[1750913047576,0.6743,2479.5,2479.4,0.8062]
[1750913048172,3.2078,2479.7,2479.6,0.80614]
[1750913048376,0.6743,2479.8,2479.7,0.80611]
[1750913050081,1.48038,2479.8,2479.6,0.80613]
[1750913050572,0.6743,2479.8,2479.6,0.80613]
[1750913051380,0.6743,2479.8,2479.7,0.80611]
[1750913052073,0.673,2479.9,2479.5,5.72708553]
[1750913052074,0.673,2479.9,2479.8,0.80607]
[1750913052577,1.47905,2479.9,2479.7,0.80609]
[1750913052778,1.46519,2479.8,2479.5,3.2078]
[1750913053077,2.84149,2479.8,2479.5,4.01395]
[1750913053376,2.84149,2479.8,2479.6,0.80613]
[1750913053579,2.0354,2479.8,2479.5,4.41098553]
[1750913053767,0.80614,2479.6,2479.4,2.00936553]
[1750913054077,0.80614,2479.6,2479.3,0.80621]
[1750913054479,0.80614,2479.6,2479.3,2.4170514]
[1750913054683,0.80614,2479.6,2479.3,0.80621]
[1750913054877,0.80619,2479.5,2479.2,2.4170914]
[1750913055180,0.80621,2479.4,2479.2,2.4170914]
[1750913055380,0.7146,2479.3,2479.2,1.6108414]
[1750913055577,0.7146,2479.3,2479.1,12.9993521]
[1750913055578,0.80627,2479.2,2479.1,9.7768]
[1750913055768,0.80627,2479.2,2479.1,3.2078]
[1750913056677,0.8063,2479.1,2478.9,1.6108414]
[1750913056980,0.80629,2479.2,2479.0,1.6108414]
[1750913057983,0.7146,2479.3,2478.9,1.6108414]
[1750913058184,1.52085,2479.3,2479.0,2.4171614]
[1750913058384,0.80627,2479.2,2479.0,1.6108414]
[1750913059387,0.7146,2479.3,2478.9,2.12495]
[1750913059388,0.8063,2479.1,2478.9,3.7357914]
[1750913061183,0.80629,2479.2,2479.0,0.80633]
[1750913061587,0.8063,2479.1,2479.0,1.6108414]
[1750913062275,0.80633,2479.0,2478.9,1.6108414]
[1750913062484,0.7054,2479.0,2478.9,1.6108414]
[1750913062990,1.51173,2479.0,2478.9,1.6108414]
[1750913063189,0.7054,2479.0,2478.9,1.6108414]
[1750913063393,0.7054,2479.0,2478.9,2.4172114]
[1750913063891,0.7054,2479.0,2478.9,1.6108414]
[1750913064189,0.7054,2479.0,2478.9,2.4172114]
[1750913064391,1.51173,2479.0,2478.8,6.4304421]
[1750913064592,1.51173,2479.0,2478.9,1.60864985]
[1750913064793,0.7054,2479.0,2478.9,2.41501985]
[1750913065086,1.51173,2479.0,2478.9,1.60864985]
[1750913065286,1.51173,2479.0,2478.8,4.81644985]
[1750913065287,0.80637,2478.9,2478.8,4.81644985]
[1750913066788,1.51176,2479.0,2478.8,4.81644985]
[1750913067093,0.80637,2478.9,2478.8,4.81644985]
[1750913067993,0.7054,2479.0,2478.8,4.81644985]
[1750913068293,0.80637,2478.9,2478.8,1.60864985]
[1750913068681,0.80637,2478.9,2478.4,4.22590113]
[1750913068682,14.7728,2478.9,2478.1,0.09210833]
[1750913068885,3.2078,2478.6,2477.9,2.1529]
[1750913069086,0.80659,2478.3,2477.9,2.95958]
[1750913069488,0.80661,2478.2,2477.9,2.1529]
[1750913069693,0.80663,2478.1,2477.9,2.1529]
[1750913070389,7.9268,2478.5,2477.9,2.1529]
[1750913070593,1.3121,2478.4,2477.8,0.6571]
[1750913070793,0.80658,2478.3,2478.0,0.80666]
[1750913070992,0.8066,2478.2,2478.0,0.80666]
[1750913071298,0.8066,2478.2,2477.9,0.80667]
[1750913071590,0.8066,2478.2,2477.9,2.18017]
[1750913071894,0.8066,2478.2,2478.0,0.80666]
[1750913072096,0.8066,2478.2,2477.9,2.18017]